fUST/lending_fUST_20240121
["ID","MTS","AMOUNT","RATE_DAILY","PERIOD"]
[312306844,1705768246674,-500.0,0.00041369,31]
[312306845,1705768246683,-500.0,0.00041369,31]
[312306846,1705768246692,-514.19775012,0.00041369,31]
[312306847,1705768246701,-500.0,0.00041369,31]
[312306848,1705768246710,-893.05,0.00041369,31]
[312306849,1705768246719,-500.0,0.00041369,31]
[312306850,1705768246728,-500.0,0.00041369,31]
[312306851,1705768246737,-150.0,0.00041369,31]
[312306852,1705768246746,-1000.0,0.00041369,2]
[312306853,1705768246755,-507.44736213,0.00041369,31]
[312306854,1705768246765,-500.0,0.00041369,31]
[312306855,1705768246774,-889.73,0.00041369,31]
[312306857,1705768246783,-501.35243031,0.00041369,31]
[312306859,1705768246793,-500.0,0.00041369,31]
[312306861,1705768246802,-503.80529713,0.00041369,31]
[312306862,1705768246811,-898.56,0.00041369,31]
[312306864,1705768246820,-500.0,0.00041369,31]
[312306866,1705768246829,-500.0,0.00041369,31]
[312306867,1705768246838,-500.0,0.00041369,31]
[312306869,1705768246848,-500.0,0.00041369,31]
[312306870,1705768246857,-500.0,0.00041369,31]
[312306872,1705768246866,-941.1,0.00041369,31]
[312306874,1705768246875,-500.0,0.00041369,31]
[312306877,1705768246884,-500.0,0.00041369,31]
[312306879,1705768246893,-532.23996379,0.00041369,31]
[312306881,1705768246903,-500.0,0.00041369,31]
[312306883,1705768246912,-895.69,0.00041369,31]
[312306885,1705768246921,-500.0,0.00041369,31]
[312306887,1705768246930,-500.0,0.00041369,31]
[312306889,1705768246939,-501.33532026,0.00041369,31]
[312306891,1705768246948,-333.28170327,0.00041369,31]
[312306893,1705768246957,-499.79256159,0.00041369,31]
[312306895,1705768246965,-500.0,0.00041369,31]
[312306897,1705768246974,-500.0,0.00041369,31]
[312306899,1705768246983,-825.39,0.00041369,31]
[312306901,1705768246992,-500.0,0.00041369,31]
[312306903,1705768247002,-500.0,0.00041369,31]
[312306905,1705768247011,-500.0,0.00041369,31]
[312306907,1705768247020,-500.0,0.00041369,31]
[312306909,1705768247029,-500.0,0.00041369,31]
[312306911,1705768247038,-500.0,0.00041369,31]
[312306913,1705768247047,-500.0,0.00041369,31]
[312306915,1705768247057,-10000.0,0.00041369,10]
[312306917,1705768247066,-500.0,0.00041369,31]
[312306919,1705768247075,-500.0,0.00041369,31]
[312306921,1705768247084,-500.0,0.00041369,31]
[312306923,1705768247093,-500.0,0.00041369,31]
[312306924,1705768247102,-502.87843745,0.00041369,7]
[312306925,1705768247112,-608.63,0.00041369,31]
[312306926,1705768247121,-500.0,0.00041369,31]
[312306927,1705768247130,-500.0,0.00041369,31]
[312306928,1705768247138,-500.0,0.00041369,31]
[312306929,1705768247148,-750.02,0.00041369,31]
[312306930,1705768247157,-1120.83,0.00041369,31]
[312306931,1705768247166,-500.0,0.00041369,31]
[312306932,1705768247176,-500.0,0.00041369,31]
[312306933,1705768247185,-500.0,0.00041369,31]
[312306934,1705768247194,-503.57420983,0.00041369,31]
[312306935,1705768247203,-500.0,0.00041369,31]
[312306936,1705768247214,-500.0,0.00041369,31]
[312306937,1705768247222,-500.0,0.00041369,31]
[312306938,1705768247231,-1517.52,0.00041369,31]
[312306939,1705768247241,-500.0,0.00041369,31]
[312306940,1705768247250,-500.0,0.00041369,31]
[312306941,1705768247259,-500.0,0.00041369,31]
[312306942,1705768247268,-500.0,0.00041369,31]
[312306943,1705768247277,-300.24265173,0.00041369,31]
[312306944,1705768247285,-500.0,0.00041369,31]
[312306945,1705768247295,-500.0,0.00041369,31]
[312306946,1705768247304,-500.0,0.00041369,31]
[312306947,1705768247313,-533.5,0.00041369,31]
[312306948,1705768247323,-500.0,0.00041369,31]
[312306949,1705768247333,-864.03,0.00041369,31]
[312306950,1705768247343,-502.58537114,0.00041369,31]
[312306951,1705768247353,-630.53353871,0.00041369,31]
[312306952,1705768247362,-500.0,0.00041369,31]
[312306953,1705768247371,-500.0,0.00041369,31]
[312306954,1705768247382,-500.0,0.00041369,31]
[312306955,1705768247391,-268.97035346,0.00041369,31]
[312306956,1705768247400,-500.0,0.00041369,31]
[312306957,1705768247409,-500.0,0.00041369,31]
[312306958,1705768247419,-2134.02,0.00041369,31]
[312306959,1705768247430,-500.0,0.00041369,31]
[312306960,1705768247438,-500.0,0.00041369,31]
[312306961,1705768247447,-3009.65,0.00041369,31]
[312306962,1705768247456,-500.0,0.00041369,31]
[312306963,1705768247465,-500.0,0.00041369,31]
[312306964,1705768247473,-500.0,0.00041369,31]
[312306965,1705768247482,-500.0,0.00041369,31]
[312306966,1705768247491,-521.44,0.00041369,31]
[312306967,1705768247500,-1074.76,0.00041369,31]
[312306968,1705768247509,-500.0,0.00041369,31]
[312306969,1705768247518,-584.37241831,0.00041369,31]
[312306970,1705768247527,-1071.51,0.00041369,31]
[312306971,1705768247536,-4081.11,0.00041369,31]
[312306972,1705768247545,-500.0,0.00041369,31]
[312306973,1705768247554,-500.0,0.00041369,31]
[312306974,1705768247563,-516.97484278,0.00041369,31]
[312306975,1705768247573,-500.0,0.00041369,31]
[312306976,1705768247581,-500.0,0.00041369,31]
[312306977,1705768247590,-500.0,0.00041369,31]
[312306978,1705768247599,-500.0,0.00041369,31]
[312306979,1705768247608,-379.32935967,0.00041369,31]
[312306980,1705768247617,-593.13,0.00041369,31]
[312306981,1705768247626,-1036.63,0.00041369,31]
[312306982,1705768247635,-1282.52,0.00041369,31]
[312306983,1705768247644,-500.0,0.00041369,31]
[312306984,1705768247653,-500.0,0.00041369,31]
[312306985,1705768247662,-38160.15,0.00041369,14]
[312306986,1705768247672,-500.0,0.00041369,31]
[312306987,1705768247683,-502.67,0.00041369,31]
[312306988,1705768247692,-500.0,0.00041369,31]
[312306989,1705768247701,-500.0,0.00041369,2]
[312306990,1705768247710,-500.0,0.00041369,31]
[312306991,1705768247719,-500.0,0.00041369,31]
[312306992,1705768247728,-978.22,0.00041369,31]
[312306993,1705768247738,-500.0,0.00041369,31]
[312306994,1705768247749,-2641.83,0.00041369,31]
[312306995,1705768247758,-661.96,0.00041369,31]
[312306996,1705768247767,-500.0,0.00041369,31]
[312306997,1705768247776,-220.0,0.00041369,2]
[312306998,1705768247785,-618.23149011,0.00041369,31]
[312306999,1705768247794,-2819.62,0.00041369,31]
[312307000,1705768247803,-545.22843941,0.00041369,31]
[312307001,1705768247812,-500.0,0.00041369,31]
[312307002,1705768247821,-500.0,0.00041369,31]
[312307003,1705768247830,-500.0,0.00041369,31]
[312307004,1705768247839,-785.7,0.00041369,31]
[312307005,1705768247848,-671.17,0.00041369,31]
[312307006,1705768247858,-500.0,0.00041369,31]
[312307007,1705768247867,-500.0,0.00041369,31]
[312307008,1705768247876,-500.0,0.00041369,31]
[312307009,1705768247885,-500.0,0.00041369,31]
[312307010,1705768247894,-500.0,0.00041369,31]
[312307011,1705768247903,-7239.54,0.00041369,31]
[312307012,1705768247912,-500.0,0.00041369,31]
[312307013,1705768247922,-1404.08,0.00041369,31]
[312307014,1705768247932,-3332.09,0.00041369,31]
[312307015,1705768247941,-500.0,0.00041369,31]
[312307016,1705768247950,-500.0,0.00041369,31]
[312307017,1705768247959,-2010.87,0.00041369,31]
[312307018,1705768247968,-500.0,0.00041369,31]
[312307019,1705768247977,-430.14912554,0.00041369,31]
[312307020,1705768247986,-603.98,0.00041369,31]
[312307021,1705768247995,-500.0,0.00041369,31]
[312307022,1705768248004,-500.0,0.00041369,31]
[312307023,1705768248013,-500.0,0.00041369,31]
[312307024,1705768248022,-1881.4,0.00041369,31]
[312307025,1705768248031,-519.85,0.00041369,31]
[312307026,1705768248040,-500.0,0.00041369,20]
[312307027,1705768248049,-500.0,0.00041369,31]
[312307028,1705768248058,-20675.05,0.00041369,31]
[312307029,1705768248067,-12301.24,0.00041369,31]
[312307030,1705768248156,-79.89252272,0.00041369,31]
[312307031,1705768248186,-548.67716787,0.00041369,31]
[312307032,1705768248195,-227.01236731,0.00041369,31]
[312307033,1705768248210,-272.98763269,0.00041369,31]
[312307034,1705768248220,-1760.13,0.00041369,31]
[312307035,1705768248229,-924.27,0.00041369,31]
[312307036,1705768248239,-10176.61,0.00041369,31]
[312307037,1705768248248,-4214.41,0.00041369,31]
[312307038,1705768248257,-606.97,0.00041369,31]
[312307039,1705768248266,-856.72,0.00041369,31]
[312307040,1705768248275,-500.76720325,0.00041369,31]
[312307041,1705768248286,-500.0,0.00041369,31]
[312307042,1705768248295,-1560.84,0.00041369,31]
[312307043,1705768248305,-610.35,0.00041369,31]
[312307044,1705768248314,-500.0,0.00041369,31]
[312307045,1705768248323,-252.7135829,0.00041369,31]
[312307046,1705768248332,-500.0,0.00041369,31]
[312307047,1705768248344,-500.0,0.00041369,31]
[312307048,1705768248353,-1771.96,0.00041369,31]
[312307049,1705768248363,-229.54006465,0.00041369,31]
[312307050,1705768248373,-500.0,0.00041369,31]
[312307051,1705768248382,-1165.2,0.00041369,31]
[312307052,1705768248391,-2127.81,0.00041369,31]
[312307053,1705768248400,-500.0,0.00041369,31]
[312307054,1705768248410,-500.0,0.00041369,31]
[312307055,1705768248419,-1094.5,0.00041369,31]
[312307056,1705768248429,-500.0,0.00041369,31]
[312307057,1705768248438,-500.0,0.00041369,31]
[312307058,1705768248448,-500.0,0.00041369,31]
[312307059,1705768248457,-500.0,0.00041369,31]
[312307060,1705768248467,-500.0,0.00041369,31]
[312307061,1705768248476,-500.0,0.00041369,31]
[312307062,1705768248485,-7904.3,0.00041369,31]
[312307063,1705768248493,-500.0,0.00041369,31]
[312307064,1705768248503,-500.0,0.00041369,31]
[312307065,1705768248514,-543.29,0.00041369,31]
[312307066,1705768248524,-500.0,0.00041369,31]
[312307067,1705768248533,-880.29,0.00041369,31]
[312307068,1705768248543,-576.57755989,0.00041369,31]
[312307069,1705768248554,-500.0,0.00041369,31]
[312307070,1705768248563,-9860.07,0.00041369,31]
[312307071,1705768248572,-500.0,0.00041369,31]
[312307072,1705768248582,-500.0,0.00041369,31]
[312307073,1705768248591,-375.79416573,0.00041369,31]
[312307074,1705768248600,-500.0,0.00041369,31]
[312307075,1705768248609,-500.0,0.00041369,31]
[312307076,1705768248618,-500.0,0.00041369,31]
[312307077,1705768248626,-2185.48,0.00041369,31]
[312307078,1705768248635,-500.0,0.00041369,31]
[312307079,1705768248644,-500.0,0.00041369,31]
[312307080,1705768248653,-500.0,0.00041369,31]
[312307081,1705768248662,-512.61871414,0.00041369,31]
[312307082,1705768248672,-501.40909335,0.00041369,31]
[312307083,1705768248681,-500.0,0.00041369,31]
[312307084,1705768248691,-503.40810807,0.00041369,31]
[312307085,1705768248700,-500.0,0.00041369,31]
[312307086,1705768248709,-500.0,0.00041369,31]
[312307087,1705768248718,-500.0,0.00041369,31]
[312307088,1705768248727,-583.7,0.00041369,31]
[312307089,1705768248737,-500.0,0.00041369,31]
[312307090,1705768248746,-1814.69,0.00041369,31]
[312307091,1705768248755,-500.0,0.00041369,31]
[312307092,1705768248764,-2196.59,0.00041369,31]
[312307093,1705768248773,-500.0,0.00041369,31]
[312307094,1705768248782,-500.0,0.00041369,31]
[312307095,1705768248791,-263.50210618,0.00041369,31]
[312307096,1705768248801,-500.0,0.00041369,31]
[312307097,1705768248810,-501.72181454,0.00041369,31]
[312307098,1705768248819,-500.0,0.00041369,31]
[312307099,1705768248828,-500.0,0.00041369,31]
[312307100,1705768248838,-224.04972928,0.00041369,31]
[312307101,1705768248847,-500.0,0.00041369,31]
[312307102,1705768248857,-500.0,0.00041369,31]
[312307103,1705768248866,-500.0,0.00041369,31]
[312307104,1705768248875,-865.85,0.00041369,31]
[312307105,1705768248884,-500.0,0.00041369,31]
[312307106,1705768248893,-500.0,0.00041369,31]
[312307107,1705768248902,-1142.53,0.00041369,7]
[312307108,1705768248912,-500.0,0.00041369,31]
[312307109,1705768248922,-500.0,0.00041369,31]
[312307110,1705768248931,-500.0,0.00041369,31]
[312307111,1705768248940,-500.78042039,0.00041369,31]
[312307112,1705768248949,-500.0,0.00041369,31]
[312307113,1705768248958,-500.0,0.00041369,31]
[312307114,1705768248968,-500.0,0.00041369,31]
[312307115,1705768248977,-1927.86,0.00041369,31]
[312307116,1705768248987,-500.0,0.00041369,31]
[312307117,1705768248996,-500.0,0.00041369,31]
[312307118,1705768249005,-500.0,0.00041369,31]
[312307119,1705768249014,-151.0,0.00041369,7]
[312307120,1705768249023,-244.658736,0.00041369,7]
[312307121,1705768249032,-714.627315,0.00041369,7]
[312307122,1705768249040,-714.627315,0.00041369,7]
[312307123,1705768249049,-527.47549339,0.00041643,31]
[312307124,1705768249058,-500.0,0.00041643,31]
[312307125,1705768249067,-500.0,0.00041643,31]
[312307126,1705768249076,-500.0,0.00041643,31]
[312307127,1705768249085,-500.0,0.00041643,31]
[312307128,1705768249094,-717.95,0.00041643,31]
[312307129,1705768249103,-530.38,0.00041643,31]
[312307130,1705768249112,-591.72108362,0.00041643,31]
[312307131,1705768249121,-500.0,0.00041643,31]
[312307132,1705768249130,-500.0,0.00041643,31]
[312307133,1705768249139,-500.0,0.00041643,31]
[312307134,1705768249148,-500.0,0.00041643,31]
[312307135,1705768249157,-500.0,0.00041643,31]
[312307136,1705768249167,-500.0,0.00041643,31]
[312307137,1705768249176,-500.0,0.00041643,31]
[312307138,1705768249185,-500.0,0.00041643,31]
[312307139,1705768249194,-893.05,0.00041643,31]
[312307140,1705768249203,-500.0,0.00041643,31]
[312307141,1705768249211,-500.0,0.00041643,31]
[312307142,1705768249222,-150.0,0.00041643,31]
[312307143,1705768249231,-1000.0,0.00041643,2]
[312307144,1705768249240,-500.0,0.00041643,31]
[312307145,1705768249249,-889.73,0.00041643,31]
[312307146,1705768249258,-500.0,0.00041643,31]
[312307147,1705768249267,-898.56,0.00041643,31]
[312307148,1705768249276,-195.86103004,0.00041643,31]
[312307149,1705768249286,-500.0,0.00041643,31]
[312307150,1705768249295,-500.0,0.00041643,31]
[312307151,1705768249304,-594.17527656,0.00041643,31]
[312307152,1705768249313,-500.0,0.00041643,31]
[312307153,1705768249322,-941.1,0.00041643,31]
[312307154,1705768249332,-500.0,0.00041643,31]
[312307155,1705768249341,-500.0,0.00041643,31]
[312307156,1705768249351,-537.94453129,0.00041643,31]
[312307157,1705768249360,-895.69,0.00041643,31]
[312307158,1705768249370,-500.0,0.00041643,31]
[312307159,1705768249379,-500.0,0.00041643,31]
[312307160,1705768249388,-500.0,0.00041643,31]
[312307161,1705768249398,-249.33829723,0.00041643,31]
[312307162,1705768249407,-825.39,0.00041643,31]
[312307163,1705768249416,-500.0,0.00041643,31]
[312307164,1705768249426,-500.0,0.00041643,31]
[312307165,1705768249435,-500.0,0.00041643,31]
[312307166,1705768249446,-500.0,0.00041643,31]
[312307167,1705768249455,-500.0,0.00041643,31]
[312307168,1705768249465,-500.0,0.00041643,31]
[312307169,1705768249475,-500.0,0.00041643,31]
[312307170,1705768249485,-9856.27708047,0.00041643,10]
[312307171,1705768249494,-297.84382515,0.00041643,31]
[312307172,1705768249503,-500.0,0.00041643,31]
[312307173,1705768249513,-500.0,0.00041643,31]
[312307174,1705768249522,-500.0,0.00041643,31]
[312307175,1705768249531,-608.63,0.00041643,31]
[312307176,1705768249540,-500.0,0.00041643,31]
[312307177,1705768249549,-500.0,0.00041643,31]
[312307178,1705768249559,-500.0,0.00041643,31]
[312307179,1705768249569,-750.02,0.00041643,31]
[312307180,1705768249579,-1120.83,0.00041643,31]
[312307181,1705768249588,-500.0,0.00041643,31]
[312307182,1705768249680,-615.37603847,0.00041643,31]
[312307183,1705768249689,-513.04798692,0.00041643,31]
[312307184,1705768249699,-500.0,0.00041643,31]
[312307185,1705768249708,-196.28766486,0.00041643,31]
[312307186,1705768249717,-500.0,0.00041643,31]
[312307187,1705768249726,-1517.52,0.00041643,31]
[312307188,1705768249735,-500.0,0.00041643,31]
[312307189,1705768249745,-500.0,0.00041643,31]
[312307190,1705768249754,-500.0,0.00041643,31]
[312307191,1705768249762,-500.0,0.00041643,31]
[312307192,1705768249772,-500.0,0.00041643,31]
[312307193,1705768249782,-500.0,0.00041643,31]
[312307194,1705768249791,-500.0,0.00041643,31]
[312307195,1705768249800,-533.5,0.00041643,31]
[312307196,1705768249809,-500.0,0.00041643,31]
[312307197,1705768249818,-864.03,0.00041643,31]
[312307198,1705768249828,-500.0,0.00041643,31]
[312307199,1705768249837,-500.0,0.00041643,31]
[312307200,1705768249846,-500.0,0.00041643,31]
[312307201,1705768249855,-500.0,0.00041643,31]
[312307202,1705768249864,-500.0,0.00041643,31]
[312307203,1705768249874,-2134.02,0.00041643,31]
[312307204,1705768249883,-500.0,0.00041643,31]
[312307205,1705768249892,-500.0,0.00041643,31]
[312307206,1705768249902,-3009.65,0.00041643,31]
[312307207,1705768249912,-500.0,0.00041643,31]
[312307208,1705768249921,-500.0,0.00041643,31]
[312307209,1705768249930,-500.0,0.00041643,31]
[312307210,1705768249939,-566.63535423,0.00041643,31]
[312307211,1705768249948,-521.44,0.00041643,31]
[312307212,1705768249958,-1074.76,0.00041643,31]
[312307213,1705768249966,-500.0,0.00041643,31]
[312307214,1705768249976,-1071.51,0.00041643,31]
[312307215,1705768249985,-4081.11,0.00041643,31]
[312307216,1705768249994,-500.0,0.00041643,31]
[312307217,1705768250003,-500.0,0.00041643,31]
[312307218,1705768250013,-500.0,0.00041643,31]
[312307219,1705768250022,-500.0,0.00041643,31]
[312307220,1705768250032,-500.0,0.00041643,31]
[312307221,1705768250042,-500.0,0.00041643,31]
[312307222,1705768250051,-593.13,0.00041643,31]
[312307223,1705768250060,-1036.63,0.00041643,31]
[312307224,1705768250070,-1282.52,0.00041643,31]
[312307225,1705768250080,-500.0,0.00041643,31]
[312307226,1705768250089,-500.0,0.00041643,31]
[312307227,1705768250098,-38160.15,0.00041643,14]
[312307228,1705768250107,-500.0,0.00041643,31]
[312307229,1705768250116,-502.67,0.00041643,31]
[312307230,1705768250125,-500.0,0.00041643,31]
[312307231,1705768250134,-500.0,0.00041643,2]
[312307232,1705768250143,-500.0,0.00041643,31]
[312307233,1705768250152,-500.0,0.00041643,31]
[312307234,1705768250161,-978.22,0.00041643,31]
[312307235,1705768250170,-500.0,0.00041643,31]
[312307236,1705768250181,-2641.83,0.00041643,31]
[312307237,1705768250190,-661.96,0.00041643,31]
[312307238,1705768250199,-500.0,0.00041643,31]
[312307239,1705768250208,-179.22187054,0.00041643,2]
[312307240,1705768250218,-2819.62,0.00041643,31]
[312307241,1705768250228,-500.0,0.00041643,31]
[312307242,1705768250237,-500.0,0.00041643,31]
[312307243,1705768250246,-500.0,0.00041643,31]
[312307244,1705768250255,-785.7,0.00041643,31]
[312307245,1705768250265,-671.17,0.00041643,31]
[312307246,1705768250273,-500.0,0.00041643,31]
[312307247,1705768250283,-500.0,0.00041643,31]
[312307248,1705768250293,-500.0,0.00041643,31]
[312307249,1705768250302,-500.0,0.00041643,31]
[312307250,1705768250310,-312.30613053,0.00041643,31]
[312307251,1705768250320,-7239.54,0.00041643,31]
[312307252,1705768250329,-500.0,0.00041643,31]
[312307253,1705768250343,-1404.08,0.00041643,31]
[312307254,1705768250359,-3332.09,0.00041643,31]
[312307255,1705768250379,-508.6613999,0.00041643,31]
[312307256,1705768250392,-500.0,0.00041643,31]
[312307257,1705768250408,-2010.87,0.00041643,31]
[312307258,1705768250426,-500.0,0.00041643,31]
[312307259,1705768250442,-603.98,0.00041643,31]
[312307260,1705768250456,-500.0,0.00041643,31]
[312307261,1705768250471,-500.0,0.00041643,31]
[312307262,1705768250486,-500.0,0.00041643,31]
[312307263,1705768250501,-1881.4,0.00041643,31]
[312307264,1705768250516,-519.85,0.00041643,31]
[312307265,1705768250531,-500.0,0.00041643,20]
[312307266,1705768250545,-500.0,0.00041643,31]
[312307267,1705768250562,-20675.05,0.00041643,31]
[312307268,1705768250577,-12301.24,0.00041643,31]
[312307269,1705768250595,-500.0,0.00041643,31]
[312307270,1705768250610,-1760.13,0.00041643,31]
[312307271,1705768250621,-924.27,0.00041643,31]
[312307272,1705768250636,-10176.61,0.00041643,31]
[312307273,1705768250649,-4214.41,0.00041643,31]
[312307274,1705768250662,-606.97,0.00041643,31]
[312307275,1705768250674,-856.72,0.00041643,31]
[312307276,1705768250688,-500.0,0.00041643,31]
[312307277,1705768250701,-1560.84,0.00041643,31]
[312307278,1705768250714,-610.35,0.00041643,31]
[312307279,1705768250727,-500.0,0.00041643,31]
[312307280,1705768250740,-500.0,0.00041643,31]
[312307281,1705768250753,-500.0,0.00041643,31]
[312307282,1705768250766,-1771.96,0.00041643,31]
[312307283,1705768250779,-500.0,0.00041643,31]
[312307284,1705768250792,-1165.2,0.00041643,31]
[312307285,1705768250805,-2127.81,0.00041643,31]
[312307286,1705768250818,-500.0,0.00041643,31]
[312307287,1705768250831,-500.0,0.00041643,31]
[312307288,1705768250844,-1094.5,0.00041643,31]
[312307289,1705768250857,-500.0,0.00041643,31]
[312307290,1705768250870,-500.0,0.00041643,31]
[312307291,1705768250883,-506.72128687,0.00041643,31]
[312307292,1705768250896,-500.0,0.00041643,31]
[312307293,1705768250909,-500.0,0.00041643,31]
[312307294,1705768250923,-500.0,0.00041643,31]
[312307295,1705768250935,-7904.3,0.00041643,31]
[312307296,1705768250949,-500.0,0.00041643,31]
[312307297,1705768250962,-500.0,0.00041643,31]
[312307298,1705768250975,-543.29,0.00041643,31]
[312307299,1705768250988,-500.0,0.00041643,31]
[312307300,1705768251002,-880.29,0.00041643,31]
[312307301,1705768251015,-500.0,0.00041643,31]
[312307302,1705768251029,-9860.07,0.00041643,31]
[312307303,1705768251042,-500.0,0.00041643,31]
[312307304,1705768251052,-500.0,0.00041643,31]
[312307305,1705768251062,-500.0,0.00041643,31]
[312307306,1705768251071,-500.0,0.00041643,31]
[312307307,1705768251081,-500.0,0.00041643,31]
[312307308,1705768251090,-2185.48,0.00041643,31]
[312307309,1705768251099,-500.0,0.00041643,31]
[312307310,1705768251108,-500.0,0.00041643,31]
[312307311,1705768251118,-500.0,0.00041643,31]
[312307312,1705768251127,-500.0,0.00041643,31]
[312307313,1705768251137,-500.0,0.00041643,31]
[312307314,1705768251147,-550.52999716,0.00041643,31]
[312307315,1705768251157,-583.7,0.00041643,31]
[312307316,1705768251168,-500.0,0.00041643,31]
[312307317,1705768251177,-218.18553313,0.00041643,31]
[312307318,1705768251187,-1814.69,0.00041643,31]
[312307319,1705768251198,-500.0,0.00041643,31]
[312307320,1705768251210,-2196.59,0.00041643,31]
[312307321,1705768251220,-500.75107497,0.00041643,31]
[312307322,1705768251230,-500.0,0.00041643,31]
[312307323,1705768251424,-500.0,0.00041643,31]
[312307324,1705768251447,-500.0,0.00041643,31]
[312307325,1705768251457,-500.7307536,0.00041643,31]
[312307326,1705768251466,-500.0,0.00041643,31]
[312307327,1705768251476,-540.71926739,0.00041643,31]
[312307328,1705768251485,-500.0,0.00041643,31]
[312307329,1705768251494,-500.0,0.00041643,31]
[312307330,1705768251503,-865.85,0.00041643,31]
[312307331,1705768251513,-500.0,0.00041643,31]
[312307332,1705768251522,-1142.53,0.00041643,7]
[312307333,1705768251531,-500.0,0.00041643,31]
[312307334,1705768251540,-500.0,0.00041643,31]
[312307335,1705768251549,-500.0,0.00041643,31]
[312307336,1705768251559,-500.0,0.00041643,31]
[312307337,1705768251568,-500.0,0.00041643,31]
[312307338,1705768251578,-500.0,0.00041643,31]
[312307339,1705768251587,-1927.86,0.00041643,31]
[312307340,1705768251596,-500.0,0.00041643,31]
[312307341,1705768251605,-503.97559751,0.00041643,31]
[312307342,1705768251614,-500.0,0.00041643,31]
[312307343,1705768251623,-151.0,0.00041643,7]
[312307344,1705768251632,-151.0,0.00041643,7]
[312307345,1705768251642,-151.0,0.00041643,7]
[312307346,1705768251652,-714.627315,0.00041643,7]
[312307347,1705768251661,-714.627315,0.00041643,7]
[312307348,1705768251671,-159.57600549,0.00041674,30]
[312307349,1705768251680,-288.739888,0.0004171,21]
[312307350,1705768251690,-2000.0,0.00041743,2]
[312307351,1705768251699,-13999.19562441,0.00041751,5]
[312307352,1705768251708,-500.0,0.00041917,31]
[312307353,1705768251717,-500.0,0.00041917,31]
[312307354,1705768251728,-500.0,0.00041917,31]
[312307355,1705768251737,-366.53946192,0.00041917,31]
[312307356,1705768251747,-717.95,0.00041917,31]
[312307357,1705768251756,-530.38,0.00041917,31]
[312307358,1705768251765,-500.0,0.00041917,31]
[312307359,1705768251775,-500.0,0.00041917,31]
[312307360,1705768251784,-526.37373625,0.00041917,31]
[312307361,1705768251795,-500.0,0.00041917,31]
[312307362,1705768251804,-500.0,0.00041917,31]
[312307363,1705768251812,-500.0,0.00041917,31]
[312307364,1705768251822,-500.0,0.00041917,31]
[312307365,1705768251831,-500.0,0.00041917,31]
[312307366,1705768251839,-893.05,0.00041917,31]
[312307367,1705768251849,-500.0,0.00041917,31]
[312307368,1705768251858,-501.44188433,0.00041917,31]
[312307369,1705768251867,-150.0,0.00041917,31]
[312307370,1705768251876,-1000.0,0.00041917,2]
[312307371,1705768251885,-500.0,0.00041917,31]
[312307372,1705768251895,-889.73,0.00041917,31]
[312307373,1705768251908,-500.0,0.00041917,31]
[312307374,1705768251917,-898.56,0.00041917,31]
[312307375,1705768251926,-500.0,0.00041917,31]
[312307376,1705768251936,-500.0,0.00041917,31]